[Event "Titled Tuesday Blitz August 1 Early 2023"]
[White "Al Mukhaini, Shima"]
[Black "Panesar Vedant"]
[WhiteFideId "22005854"]
[BlackFideId "35033018"]
[WhiteElo "2431"]
[BlackElo "2707"]
[Result "0-1"]
[Round "7"]
[TimeControl "180+1"]
[Date "2023.08.01"]
[WhiteClock "0:01:12"]
[BlackClock "0:01:21"]
[Board "63"]

1. d4 {[%clk 0:02:57]}  Nf6 {[%clk 0:02:43]} 2. Nf3 {[%clk 0:02:57]}  d5 {[%clk 0:02:43]} 3. g3 {[%clk 0:02:58]}  c5 {[%clk 0:02:43]} 4. Bg2 {[%clk 0:02:57]}  cxd4 {[%clk 0:02:43]} 5. O-O {[%clk 0:02:55]}  h6 {[%clk 0:02:43]} 6. Nxd4 {[%clk 0:02:53]}  e5 {[%clk 0:02:43]} 7. Nb5 {[%clk 0:02:52]}  a6 {[%clk 0:02:38]} 8. N5c3 {[%clk 0:02:51]}  d4 {[%clk 0:02:37]} 9. Ne4 {[%clk 0:02:52]}  Nc6 {[%clk 0:02:38]} 10. Nxf6+ {[%clk 0:02:51]}  Qxf6 {[%clk 0:02:39]} 11. c3 {[%clk 0:02:51]}  Bc5 {[%clk 0:02:31]} 12. b4 {[%clk 0:02:46]}  Ba7 {[%clk 0:02:26]} 13. Bb2 {[%clk 0:02:46]}  O-O {[%clk 0:02:25]} 14. cxd4 {[%clk 0:02:46]}  exd4 {[%clk 0:02:22]} 15. a3 {[%clk 0:02:42]}  Bg4 {[%clk 0:02:19]} 16. Nd2 {[%clk 0:02:37]}  Rfe8 {[%clk 0:02:19]} 17. Nf3 {[%clk 0:02:37]}  Rad8 {[%clk 0:02:19]} 18. Qd3 {[%clk 0:02:27]}  Ne5 {[%clk 0:02:10]} 19. Nxe5 {[%clk 0:02:17]}  Qxe5 {[%clk 0:02:11]} 20. Bf3 {[%clk 0:02:05]}  Bxf3 {[%clk 0:02:05]} 21. exf3 {[%clk 0:02:05]}  Qe2 {[%clk 0:02:04]} 22. Qxe2 {[%clk 0:02:02]}  Rxe2 {[%clk 0:02:05]} 23. Rab1 {[%clk 0:02:03]}  d3 {[%clk 0:02:05]} 24. Bc3 {[%clk 0:01:54]}  Rc8 {[%clk 0:02:02]} 25. Rbc1 {[%clk 0:01:49]}  Kh7 {[%clk 0:01:40]} 26. Kg2 {[%clk 0:01:47]}  Rc2 {[%clk 0:01:28]} 27. Rxc2 {[%clk 0:01:47]}  dxc2 {[%clk 0:01:29]} 28. Bd2 {[%clk 0:01:43]}  Rd8 {[%clk 0:01:28]} 29. Bc1 {[%clk 0:01:31]}  Rd1 {[%clk 0:01:28]} 30. Bb2 {[%clk 0:01:28]}  Bd4 {[%clk 0:01:22]} 31. Bxd4 {[%clk 0:01:27]}  Rxf1 {[%clk 0:01:21]} 32. Kxf1 {[%clk 0:01:12]}  c1=Q+ {[%clk 0:01:21]} 0-1


[Site "https://www.chess.com"]

[Event "Titled Tuesday Blitz August 1 Early 2023"]
[White "Nazari, Arad"]
[Black "Onufrienko, Vladislav"]
[WhiteFideId "12577324"]
[BlackFideId "13804332"]
[WhiteElo "2779"]
[BlackElo "2560"]
[Result "0-1"]
[Round "7"]
[TimeControl "180+1"]
[Date "2023.08.01"]
[WhiteClock "0:00:21"]
[BlackClock "0:01:54"]
[Board "66"]

1. e4 {[%clk 0:03:00]}  Nf6 {[%clk 0:03:00]} 2. e5 {[%clk 0:02:49]}  Nd5 {[%clk 0:03:00]} 3. d4 {[%clk 0:02:50]}  d6 {[%clk 0:03:00]} 4. c4 {[%clk 0:02:51]}  Nb6 {[%clk 0:03:00]} 5. f4 {[%clk 0:02:52]}  dxe5 {[%clk 0:03:00]} 6. fxe5 {[%clk 0:02:53]}  Nc6 {[%clk 0:03:01]} 7. Be3 {[%clk 0:02:53]}  Bf5 {[%clk 0:03:02]} 8. Nc3 {[%clk 0:02:53]}  e6 {[%clk 0:03:02]} 9. Be2 {[%clk 0:02:53]}  f6 {[%clk 0:03:02]} 10. exf6 {[%clk 0:02:50]}  Qxf6 {[%clk 0:03:03]} 11. Nf3 {[%clk 0:02:51]}  O-O-O {[%clk 0:03:03]} 12. Bg5 {[%clk 0:02:50]}  Rxd4 {[%clk 0:03:03]} 13. Bxf6 {[%clk 0:02:42]}  Rxd1+ {[%clk 0:03:03]} 14. Rxd1 {[%clk 0:02:41]}  gxf6 {[%clk 0:03:04]} 15. O-O {[%clk 0:02:38]}  Bc5+ {[%clk 0:03:05]} 16. Kh1 {[%clk 0:02:38]}  Bc2 {[%clk 0:03:05]} 17. Rc1 {[%clk 0:02:38]}  Bg6 {[%clk 0:03:05]} 18. Nh4 {[%clk 0:02:35]}  f5 {[%clk 0:03:06]} 19. a3 {[%clk 0:02:29]}  Ne5 {[%clk 0:02:45]} 20. Nf3 {[%clk 0:02:03]}  Nxf3 {[%clk 0:02:31]} 21. Bxf3 {[%clk 0:01:38]}  e5 {[%clk 0:02:15]} 22. Bd5 {[%clk 0:01:09]}  Re8 {[%clk 0:02:00]} 23. b4 {[%clk 0:00:55]}  Be3 {[%clk 0:02:00]} 24. Rce1 {[%clk 0:00:49]}  Bd2 {[%clk 0:01:58]} 25. Ne2 {[%clk 0:00:36]}  Bxe1 {[%clk 0:01:58]} 26. Rxe1 {[%clk 0:00:37]}  c6 {[%clk 0:01:58]} 27. Bf3 {[%clk 0:00:21]}  e4 {[%clk 0:01:54]} 0-1


[Site "https://www.chess.com"]

[Event "Titled Tuesday Blitz August 1 Early 2023"]
[White "Gorovets, Andrey"]
[Black "Gauri, Shankar"]
[WhiteFideId "13504037"]
[BlackFideId "5041350"]
[WhiteElo "2751"]
[BlackElo "2558"]
[Result "1-0"]
[Round "7"]
[TimeControl "180+1"]
[Date "2023.08.01"]
[WhiteClock "0:00:10"]
[BlackClock "0:00:02"]
[Board "67"]

1. Nf3 {[%clk 0:02:59]}  Nf6 {[%clk 0:02:58]} 2. g3 {[%clk 0:02:59]}  b6 {[%clk 0:02:57]} 3. Bg2 {[%clk 0:02:59]}  Bb7 {[%clk 0:02:58]} 4. c4 {[%clk 0:03:00]}  g6 {[%clk 0:02:58]} 5. d4 {[%clk 0:02:59]}  Bg7 {[%clk 0:02:58]} 6. O-O {[%clk 0:02:59]}  O-O {[%clk 0:02:59]} 7. d5 {[%clk 0:03:00]}  Na6 {[%clk 0:02:58]} 8. Nc3 {[%clk 0:02:59]}  Nc5 {[%clk 0:02:59]} 9. Qc2 {[%clk 0:02:53]}  e6 {[%clk 0:02:33]} 10. e4 {[%clk 0:02:47]}  exd5 {[%clk 0:02:32]} 11. exd5 {[%clk 0:02:46]}  Re8 {[%clk 0:02:23]} 12. Be3 {[%clk 0:02:26]}  Ng4 {[%clk 0:02:01]} 13. Bd4 {[%clk 0:02:22]}  Bxd4 {[%clk 0:01:53]} 14. Nxd4 {[%clk 0:02:23]}  a5 {[%clk 0:01:34]} 15. b3 {[%clk 0:02:20]}  Qf6 {[%clk 0:01:14]} 16. Rad1 {[%clk 0:02:20]}  d6 {[%clk 0:01:08]} 17. h3 {[%clk 0:02:18]}  Ne5 {[%clk 0:01:04]} 18. f4 {[%clk 0:02:16]}  Ned7 {[%clk 0:00:59]} 19. Ncb5 {[%clk 0:02:16]}  Rac8 {[%clk 0:00:55]} 20. g4 {[%clk 0:01:58]}  Ba6 {[%clk 0:00:51]} 21. g5 {[%clk 0:01:57]}  Qg7 {[%clk 0:00:48]} 22. Nc3 {[%clk 0:01:10]}  Re3 {[%clk 0:00:45]} 23. Rf3 {[%clk 0:01:09]}  Rce8 {[%clk 0:00:43]} 24. Rxe3 {[%clk 0:01:08]}  Rxe3 {[%clk 0:00:42]} 25. Kf2 {[%clk 0:01:08]}  Re8 {[%clk 0:00:32]} 26. Qd2 {[%clk 0:01:06]}  h6 {[%clk 0:00:30]} 27. h4 {[%clk 0:01:05]}  hxg5 {[%clk 0:00:30]} 28. hxg5 {[%clk 0:01:06]}  f6 {[%clk 0:00:28]} 29. Bh3 {[%clk 0:00:40]}  fxg5 {[%clk 0:00:19]} 30. fxg5 {[%clk 0:00:35]}  Ne5 {[%clk 0:00:16]} 31. Kg3 {[%clk 0:00:20]}  Bc8 {[%clk 0:00:16]} 32. Bxc8 {[%clk 0:00:19]}  Rxc8 {[%clk 0:00:17]} 33. Ne6 {[%clk 0:00:16]}  Qf7 {[%clk 0:00:15]} 34. Qf4 {[%clk 0:00:12]}  Nxe6 {[%clk 0:00:14]} 35. dxe6 {[%clk 0:00:11]}  Qxf4+ {[%clk 0:00:06]} 36. Kxf4 {[%clk 0:00:12]}  Rf8+ {[%clk 0:00:06]} 37. Ke4 {[%clk 0:00:11]}  Re8 {[%clk 0:00:06]} 38. Nd5 {[%clk 0:00:11]}  Rxe6 {[%clk 0:00:05]} 39. Nxc7 {[%clk 0:00:11]}  Re7 {[%clk 0:00:05]} 40. Nd5 {[%clk 0:00:11]}  Rf7 {[%clk 0:00:05]} 41. Nf6+ {[%clk 0:00:11]}  Kg7 {[%clk 0:00:05]} 42. Rh1 {[%clk 0:00:10]}  Re7 {[%clk 0:00:02]} 43. Rh7+ {[%clk 0:00:09]}  Kf8 {[%clk 0:00:02]} 44. Rh8+ {[%clk 0:00:10]}  Kf7 {[%clk 0:00:03]} 45. Kd5 {[%clk 0:00:09]}  Nd3 {[%clk 0:00:01]} 46. Kxd6 {[%clk 0:00:08]}  Re6+ {[%clk 0:00:02]} 47. Kd7 {[%clk 0:00:08]}  Nc5+ {[%clk 0:00:01]} 48. Kc7 {[%clk 0:00:08]}  Re2 {[%clk 0:00:02]} 49. Kxb6 {[%clk 0:00:08]}  Rxa2 {[%clk 0:00:02]} 50. Kxc5 {[%clk 0:00:08]}  Rb2 {[%clk 0:00:02]} 51. Rb8 {[%clk 0:00:07]}  a4 {[%clk 0:00:03]} 52. Rb7+ {[%clk 0:00:07]}  Ke6 {[%clk 0:00:02]} 53. Rb6+ {[%clk 0:00:07]}  Kf5 {[%clk 0:00:03]} 54. bxa4 {[%clk 0:00:08]}  Ra2 {[%clk 0:00:03]} 55. Kb4 {[%clk 0:00:07]}  Kxg5 {[%clk 0:00:02]} 56. Nd5 {[%clk 0:00:08]}  Kf5 {[%clk 0:00:02]} 57. a5 {[%clk 0:00:08]}  g5 {[%clk 0:00:02]} 58. Rf6+ {[%clk 0:00:08]}  Ke5 {[%clk 0:00:02]} 59. Rg6 {[%clk 0:00:08]}  Kf5 {[%clk 0:00:03]} 60. Rg8 {[%clk 0:00:09]}  g4 {[%clk 0:00:03]} 61. Kb5 {[%clk 0:00:09]}  Rb2+ {[%clk 0:00:03]} 62. Nb4 {[%clk 0:00:09]}  Kf4 {[%clk 0:00:03]} 63. a6 {[%clk 0:00:10]}  Kf3 {[%clk 0:00:03]} 64. a7 {[%clk 0:00:10]}  Ra2 {[%clk 0:00:02]} 65. Nxa2 {[%clk 0:00:10]} 1-0


[Site "https://www.chess.com"]

[Event "Titled Tuesday Blitz August 1 Early 2023"]
[White "Vlassov, Nikolai"]
[Black "Cherniaiev, Tykhon"]
[WhiteFideId "4103360"]
[BlackFideId "14182360"]
[WhiteElo "2546"]
[BlackElo "2749"]
[Result "0-1"]
[Round "7"]
[TimeControl "180+1"]
[Date "2023.08.01"]
[WhiteClock "0:00:08"]
[BlackClock "0:00:07"]
[Board "68"]

1. e4 {[%clk 0:03:00]}  e5 {[%clk 0:03:00]} 2. Bc4 {[%clk 0:03:00]}  c6 {[%clk 0:02:56]} 3. Qh5 {[%clk 0:02:57]}  Qf6 {[%clk 0:02:53]} 4. Nf3 {[%clk 0:02:57]}  d6 {[%clk 0:02:29]} 5. Nc3 {[%clk 0:02:57]}  g6 {[%clk 0:02:22]} 6. Qg5 {[%clk 0:02:56]}  Bg7 {[%clk 0:02:10]} 7. d3 {[%clk 0:02:53]}  h6 {[%clk 0:02:08]} 8. Qg3 {[%clk 0:02:41]}  a5 {[%clk 0:02:06]} 9. a4 {[%clk 0:02:40]}  Be6 {[%clk 0:02:03]} 10. Nd2 {[%clk 0:02:36]}  Nd7 {[%clk 0:01:58]} 11. O-O {[%clk 0:02:35]}  g5 {[%clk 0:01:42]} 12. Bxe6 {[%clk 0:02:24]}  Qxe6 {[%clk 0:01:38]} 13. Nc4 {[%clk 0:02:17]}  Ne7 {[%clk 0:01:37]} 14. Re1 {[%clk 0:02:05]}  O-O {[%clk 0:01:26]} 15. h4 {[%clk 0:02:02]}  f6 {[%clk 0:01:26]} 16. Be3 {[%clk 0:01:48]}  Ng6 {[%clk 0:01:23]} 17. hxg5 {[%clk 0:01:45]}  fxg5 {[%clk 0:01:22]} 18. Qh3 {[%clk 0:01:16]}  Qe7 {[%clk 0:01:17]} 19. g3 {[%clk 0:01:11]}  Nf6 {[%clk 0:01:16]} 20. Bb6 {[%clk 0:01:05]}  Ra6 {[%clk 0:01:02]} 21. Bxa5 {[%clk 0:00:46]}  d5 {[%clk 0:00:53]} 22. exd5 {[%clk 0:00:41]}  cxd5 {[%clk 0:00:53]} 23. Bb6 {[%clk 0:00:13]}  dxc4 {[%clk 0:00:50]} 24. a5 {[%clk 0:00:13]}  cxd3 {[%clk 0:00:46]} 25. cxd3 {[%clk 0:00:14]}  Raa8 {[%clk 0:00:39]} 26. Qf5 {[%clk 0:00:14]}  Qf7 {[%clk 0:00:37]} 27. b4 {[%clk 0:00:12]}  Ne7 {[%clk 0:00:33]} 28. Qxe5 {[%clk 0:00:08]}  Nc6 {[%clk 0:00:24]} 29. Qe6 {[%clk 0:00:08]}  Qxe6 {[%clk 0:00:24]} 30. Rxe6 {[%clk 0:00:08]}  Nd7 {[%clk 0:00:21]} 31. Rc1 {[%clk 0:00:08]}  Nxb6 {[%clk 0:00:21]} 32. axb6 {[%clk 0:00:09]}  Nxb4 {[%clk 0:00:20]} 33. Ne4 {[%clk 0:00:09]}  Nxd3 {[%clk 0:00:18]} 34. Rc7 {[%clk 0:00:09]}  Rf7 {[%clk 0:00:10]} 35. Ree7 {[%clk 0:00:08]}  Rxe7 {[%clk 0:00:10]} 36. Rxe7 {[%clk 0:00:09]}  Bd4 {[%clk 0:00:07]} 37. Rxb7 {[%clk 0:00:08]}  Nc5 {[%clk 0:00:07]} 38. Rc7 {[%clk 0:00:07]}  Nxe4 {[%clk 0:00:07]} 39. Rc4 {[%clk 0:00:06]}  Bxf2+ {[%clk 0:00:07]} 40. Kg2 {[%clk 0:00:06]}  Bxb6 {[%clk 0:00:08]} 41. Rxe4 {[%clk 0:00:06]}  Kf7 {[%clk 0:00:08]} 42. Kh3 {[%clk 0:00:06]}  Re8 {[%clk 0:00:08]} 43. Rb4 {[%clk 0:00:06]}  Bc7 {[%clk 0:00:08]} 44. Rb7 {[%clk 0:00:06]}  Re7 {[%clk 0:00:08]} 45. Kg4 {[%clk 0:00:07]}  Kg6 {[%clk 0:00:09]} 46. Ra7 {[%clk 0:00:06]}  h5+ {[%clk 0:00:08]} 47. Kh3 {[%clk 0:00:06]}  Rf7 {[%clk 0:00:05]} 48. Ra6+ {[%clk 0:00:06]}  Rf6 {[%clk 0:00:05]} 49. Ra7 {[%clk 0:00:07]}  Bd6 {[%clk 0:00:04]} 50. Ra8 {[%clk 0:00:06]}  Rf3 {[%clk 0:00:03]} 51. Ra6 {[%clk 0:00:06]}  Rxg3+ {[%clk 0:00:03]} 52. Kh2 {[%clk 0:00:07]}  Rd3+ {[%clk 0:00:04]} 53. Kg2 {[%clk 0:00:07]}  h4 {[%clk 0:00:04]} 54. Kf2 {[%clk 0:00:08]}  h3 {[%clk 0:00:05]} 55. Ke2 {[%clk 0:00:08]}  h2 {[%clk 0:00:03]} 56. Kxd3 {[%clk 0:00:08]}  h1=Q {[%clk 0:00:04]} 57. Rxd6+ {[%clk 0:00:09]}  Kf5 {[%clk 0:00:04]} 58. Kc4 {[%clk 0:00:09]}  Qc1+ {[%clk 0:00:04]} 59. Kb5 {[%clk 0:00:09]}  g4 {[%clk 0:00:05]} 60. Rd5+ {[%clk 0:00:09]}  Ke4 {[%clk 0:00:05]} 61. Rc5 {[%clk 0:00:10]}  Qb2+ {[%clk 0:00:05]} 62. Kc6 {[%clk 0:00:10]}  g3 {[%clk 0:00:05]} 63. Rb5 {[%clk 0:00:10]}  Qxb5+ {[%clk 0:00:05]} 64. Kxb5 {[%clk 0:00:10]}  g2 {[%clk 0:00:06]} 65. Kc4 {[%clk 0:00:08]}  g1=Q {[%clk 0:00:07]} 0-1


[Site "https://www.chess.com"]

[Event "Titled Tuesday Blitz August 1 Early 2023"]
[White "Ismagilov, Damir"]
[Black "Amilal Munkhdalai"]
[WhiteFideId "34199982"]
[BlackFideId "4903250"]
[WhiteElo "2539"]
[BlackElo "2719"]
[Result "0-1"]
[Round "7"]
[TimeControl "180+1"]
[Date "2023.08.01"]
[WhiteClock "0:00:00"]
[BlackClock "0:00:39"]
[Board "70"]

1. d4 {[%clk 0:03:00]}  Nf6 {[%clk 0:03:00]} 2. c4 {[%clk 0:03:01]}  e6 {[%clk 0:03:00]} 3. Nf3 {[%clk 0:03:01]}  b6 {[%clk 0:03:00]} 4. g3 {[%clk 0:03:01]}  Bb7 {[%clk 0:03:00]} 5. Bg2 {[%clk 0:03:00]}  Bb4+ {[%clk 0:03:00]} 6. Bd2 {[%clk 0:02:56]}  a5 {[%clk 0:03:00]} 7. O-O {[%clk 0:02:55]}  O-O {[%clk 0:02:59]} 8. Bf4 {[%clk 0:02:55]}  Be7 {[%clk 0:02:52]} 9. Nc3 {[%clk 0:02:55]}  h6 {[%clk 0:02:51]} 10. d5 {[%clk 0:02:51]}  Bb4 {[%clk 0:02:49]} 11. Nd4 {[%clk 0:02:33]}  Bxc3 {[%clk 0:02:48]} 12. bxc3 {[%clk 0:02:33]}  exd5 {[%clk 0:02:43]} 13. Nf5 {[%clk 0:02:26]}  d6 {[%clk 0:02:40]} 14. cxd5 {[%clk 0:02:23]}  Nbd7 {[%clk 0:02:40]} 15. Qd2 {[%clk 0:02:13]}  Nh5 {[%clk 0:02:31]} 16. Bxh6 {[%clk 0:01:52]}  Qf6 {[%clk 0:02:25]} 17. Nxg7 {[%clk 0:01:13]}  Nxg7 {[%clk 0:02:24]} 18. e4 {[%clk 0:01:03]}  Ne5 {[%clk 0:02:21]} 19. Bxg7 {[%clk 0:00:52]}  Qxg7 {[%clk 0:02:11]} 20. f4 {[%clk 0:00:53]}  Nc4 {[%clk 0:02:07]} 21. Qe2 {[%clk 0:00:39]}  Ba6 {[%clk 0:02:06]} 22. Rfe1 {[%clk 0:00:33]}  Rae8 {[%clk 0:02:04]} 23. Qh5 {[%clk 0:00:31]}  Qxc3 {[%clk 0:01:56]} 24. e5 {[%clk 0:00:31]}  Nxe5 {[%clk 0:01:36]} 25. fxe5 {[%clk 0:00:23]}  Rxe5 {[%clk 0:01:34]} 26. Qg4+ {[%clk 0:00:21]}  Kh8 {[%clk 0:01:31]} 27. Qh4+ {[%clk 0:00:16]}  Kg7 {[%clk 0:01:31]} 28. Qg4+ {[%clk 0:00:16]}  Kh6 {[%clk 0:01:28]} 29. Qf4+ {[%clk 0:00:15]}  Kg6 {[%clk 0:01:25]} 30. Qg4+ {[%clk 0:00:09]}  Kf6 {[%clk 0:01:25]} 31. Qh4+ {[%clk 0:00:09]}  Kg7 {[%clk 0:01:25]} 32. Qg4+ {[%clk 0:00:09]}  Kf6 {[%clk 0:01:19]} 33. Qh4+ {[%clk 0:00:07]}  Kg6 {[%clk 0:01:20]} 34. Qg4+ {[%clk 0:00:05]}  Rg5 {[%clk 0:01:20]} 35. Qe4+ {[%clk 0:00:04]}  Kg7 {[%clk 0:01:18]} 36. Rac1 {[%clk 0:00:04]}  Qf6 {[%clk 0:01:10]} 37. Rxc7 {[%clk 0:00:03]}  Bc8 {[%clk 0:01:08]} 38. Qf4 {[%clk 0:00:02]}  Rf5 {[%clk 0:01:06]} 39. Qg4+ {[%clk 0:00:02]}  Rg5 {[%clk 0:01:06]} 40. Qf4 {[%clk 0:00:03]}  Bf5 {[%clk 0:01:06]} 41. h4 {[%clk 0:00:02]}  Rg4 {[%clk 0:01:06]} 42. Qf2 {[%clk 0:00:02]}  Qg6 {[%clk 0:01:02]} 43. Kh2 {[%clk 0:00:02]}  Rh8 {[%clk 0:01:01]} 44. Bh3 {[%clk 0:00:02]}  Rh6 {[%clk 0:00:39]} 45. Bxg4 {[%clk 0:00:02]}  Qxg4 {[%clk 0:00:39]} 46. Kg2 {[%clk 0:00:00]}  Be4+ {[%clk 0:00:39]} 0-1


[Site "https://www.chess.com"]

[Event "Titled Tuesday Blitz August 1 Early 2023"]
[White "Vyatkin, Dmitry"]
[Black "Suyarov, Mukhammadzokhid"]
[WhiteFideId "4171900"]
[BlackFideId "14210495"]
[WhiteElo "2523"]
[BlackElo "2715"]
[Result "0-1"]
[Round "7"]
[TimeControl "180+1"]
[Date "2023.08.01"]
[WhiteClock "0:00:00"]
[BlackClock "0:01:49"]
[Board "72"]

1. d4 {[%clk 0:02:59]}  e6 {[%clk 0:02:50]} 2. c4 {[%clk 0:02:59]}  b6 {[%clk 0:02:49]} 3. Nf3 {[%clk 0:02:53]}  Nf6 {[%clk 0:02:42]} 4. g3 {[%clk 0:02:53]}  Bb7 {[%clk 0:02:41]} 5. Bg2 {[%clk 0:02:54]}  Bb4+ {[%clk 0:02:42]} 6. Bd2 {[%clk 0:02:53]}  Be7 {[%clk 0:02:42]} 7. O-O {[%clk 0:02:52]}  O-O {[%clk 0:02:41]} 8. Nc3 {[%clk 0:02:52]}  c6 {[%clk 0:02:42]} 9. e4 {[%clk 0:02:46]}  d5 {[%clk 0:02:43]} 10. e5 {[%clk 0:02:46]}  Ne4 {[%clk 0:02:35]} 11. cxd5 {[%clk 0:02:40]}  cxd5 {[%clk 0:02:34]} 12. Re1 {[%clk 0:02:40]}  Nxd2 {[%clk 0:02:34]} 13. Nxd2 {[%clk 0:02:28]}  Ba6 {[%clk 0:02:35]} 14. Bf1 {[%clk 0:02:15]}  Qd7 {[%clk 0:02:23]} 15. Bxa6 {[%clk 0:02:02]}  Nxa6 {[%clk 0:02:24]} 16. a3 {[%clk 0:02:00]}  Rfc8 {[%clk 0:02:15]} 17. Rc1 {[%clk 0:01:59]}  Nb8 {[%clk 0:02:07]} 18. f4 {[%clk 0:01:40]}  g6 {[%clk 0:02:05]} 19. Qa4 {[%clk 0:01:27]}  Qxa4 {[%clk 0:02:04]} 20. Nxa4 {[%clk 0:01:27]}  Nc6 {[%clk 0:02:05]} 21. Nb3 {[%clk 0:01:17]}  b5 {[%clk 0:02:05]} 22. Nac5 {[%clk 0:01:16]}  Nxd4 {[%clk 0:02:05]} 23. Kg2 {[%clk 0:00:58]}  Nxb3 {[%clk 0:02:03]} 24. Nxb3 {[%clk 0:00:57]}  Bd8 {[%clk 0:02:04]} 25. Nd4 {[%clk 0:00:46]}  a6 {[%clk 0:02:03]} 26. Nc6 {[%clk 0:00:46]}  Kf8 {[%clk 0:02:02]} 27. Rc2 {[%clk 0:00:44]}  Bb6 {[%clk 0:02:02]} 28. Kf3 {[%clk 0:00:43]}  Rc7 {[%clk 0:01:59]} 29. Rec1 {[%clk 0:00:41]}  Rac8 {[%clk 0:01:59]} 30. Nb4 {[%clk 0:00:22]}  Rxc2 {[%clk 0:02:00]} 31. Rxc2 {[%clk 0:00:22]}  Rxc2 {[%clk 0:02:00]} 32. Nxc2 {[%clk 0:00:22]}  a5 {[%clk 0:02:00]} 33. b3 {[%clk 0:00:16]}  h5 {[%clk 0:01:59]} 34. h3 {[%clk 0:00:16]}  Ke7 {[%clk 0:01:59]} 35. g4 {[%clk 0:00:09]}  h4 {[%clk 0:01:59]} 36. g5 {[%clk 0:00:09]}  Kd7 {[%clk 0:01:59]} 37. Ke2 {[%clk 0:00:09]}  Kc6 {[%clk 0:01:59]} 38. Kd3 {[%clk 0:00:09]}  Bc5 {[%clk 0:01:59]} 39. b4 {[%clk 0:00:09]}  Bb6 {[%clk 0:01:59]} 40. Nd4+ {[%clk 0:00:07]}  Kd7 {[%clk 0:01:55]} 41. Kc3 {[%clk 0:00:07]}  axb4+ {[%clk 0:01:54]} 42. axb4 {[%clk 0:00:07]}  Ke7 {[%clk 0:01:53]} 43. Kd3 {[%clk 0:00:07]}  Kd8 {[%clk 0:01:53]} 44. Nxb5 {[%clk 0:00:08]}  Bf2 {[%clk 0:01:51]} 45. Nc3 {[%clk 0:00:06]}  Be1 {[%clk 0:01:49]} 46. Na2 {[%clk 0:00:03]}  Kc7 {[%clk 0:01:49]} 47. Kc2 {[%clk 0:00:00]}  Bg3 {[%clk 0:01:49]} 0-1


[Site "https://www.chess.com"]

[Event "Titled Tuesday Blitz August 1 Early 2023"]
[White "Nasir, Zehn"]
[Black "Estrada Nieto, Julian"]
[WhiteFideId "2613239"]
[BlackFideId "5101018"]
[WhiteElo "2620"]
[BlackElo "2511"]
[Result "0-1"]
[Round "7"]
[TimeControl "180+1"]
[Date "2023.08.01"]
[WhiteClock "0:01:08"]
[BlackClock "0:00:50"]
[Board "77"]

1. d4 {[%clk 0:03:00]}  d5 {[%clk 0:02:58]} 2. Bf4 {[%clk 0:03:01]}  Nf6 {[%clk 0:02:57]} 3. e3 {[%clk 0:03:01]}  c5 {[%clk 0:02:57]} 4. c3 {[%clk 0:03:01]}  Nc6 {[%clk 0:02:57]} 5. Nd2 {[%clk 0:03:01]}  e6 {[%clk 0:02:47]} 6. Ngf3 {[%clk 0:03:00]}  h6 {[%clk 0:02:43]} 7. Ne5 {[%clk 0:03:00]}  Nxe5 {[%clk 0:02:37]} 8. dxe5 {[%clk 0:02:56]}  Nd7 {[%clk 0:02:36]} 9. Bd3 {[%clk 0:02:56]}  Be7 {[%clk 0:02:36]} 10. Qg4 {[%clk 0:02:53]}  g5 {[%clk 0:02:25]} 11. Bg3 {[%clk 0:02:34]}  h5 {[%clk 0:02:25]} 12. Qf3 {[%clk 0:02:13]}  h4 {[%clk 0:02:25]} 13. O-O-O {[%clk 0:02:13]}  hxg3 {[%clk 0:02:14]} 14. hxg3 {[%clk 0:02:14]}  Rxh1 {[%clk 0:02:07]} 15. Rxh1 {[%clk 0:02:14]}  Nxe5 {[%clk 0:02:05]} 16. Rh8+ {[%clk 0:02:04]}  Bf8 {[%clk 0:02:03]} 17. Bb5+ {[%clk 0:02:01]}  Bd7 {[%clk 0:01:59]} 18. Bxd7+ {[%clk 0:02:00]}  Qxd7 {[%clk 0:01:58]} 19. Qh5 {[%clk 0:02:01]}  O-O-O {[%clk 0:01:49]} 20. Qxg5 {[%clk 0:02:00]}  Nd3+ {[%clk 0:01:45]} 21. Kc2 {[%clk 0:01:58]}  Nxf2 {[%clk 0:01:43]} 22. Qf4 {[%clk 0:01:48]}  d4 {[%clk 0:01:29]} 23. Qxf2 {[%clk 0:01:41]}  dxc3 {[%clk 0:01:22]} 24. bxc3 {[%clk 0:01:37]}  Qd3+ {[%clk 0:01:21]} 25. Kd1 {[%clk 0:01:30]}  Qb1+ {[%clk 0:01:02]} 26. Ke2 {[%clk 0:01:28]}  Qd3+ {[%clk 0:01:02]} 27. Ke1 {[%clk 0:01:26]}  Qxc3 {[%clk 0:01:02]} 28. e4 {[%clk 0:01:13]}  Qc1+ {[%clk 0:00:58]} 29. Ke2 {[%clk 0:01:11]}  Rxd2+ {[%clk 0:00:58]} 30. Kf3 {[%clk 0:01:12]}  Rxf2+ {[%clk 0:00:57]} 31. Kxf2 {[%clk 0:01:13]}  Qd2+ {[%clk 0:00:54]} 32. Kf3 {[%clk 0:01:13]}  Qd6 {[%clk 0:00:53]} 33. e5 {[%clk 0:01:13]}  Qe7 {[%clk 0:00:52]} 34. g4 {[%clk 0:01:14]}  Kc7 {[%clk 0:00:52]} 35. g5 {[%clk 0:01:13]}  Bg7 {[%clk 0:00:51]} 36. Rh7 {[%clk 0:01:13]}  Bxe5 {[%clk 0:00:51]} 37. g6 {[%clk 0:01:12]}  Qf6+ {[%clk 0:00:51]} 38. Ke2 {[%clk 0:01:08]}  Qxg6 {[%clk 0:00:50]} 0-1


[Site "https://www.chess.com"]

[Event "Titled Tuesday Blitz August 1 Early 2023"]
[White "Rama, Tejas"]
[Black "Ovchinnikov, Vsevolod"]
[WhiteFideId "30907381"]
[BlackFideId "24176842"]
[WhiteElo "2496"]
[BlackElo "2604"]
[Result "0-1"]
[Round "7"]
[TimeControl "180+1"]
[Date "2023.08.01"]
[WhiteClock "0:00:00"]
[BlackClock "0:00:08"]
[Board "79"]

1. d4 {[%clk 0:02:54]}  Nf6 {[%clk 0:02:59]} 2. c4 {[%clk 0:02:54]}  g6 {[%clk 0:03:00]} 3. Nc3 {[%clk 0:02:53]}  d5 {[%clk 0:03:00]} 4. Nf3 {[%clk 0:02:52]}  Bg7 {[%clk 0:03:00]} 5. Qb3 {[%clk 0:02:52]}  dxc4 {[%clk 0:03:00]} 6. Qxc4 {[%clk 0:02:53]}  O-O {[%clk 0:03:00]} 7. e4 {[%clk 0:02:54]}  a6 {[%clk 0:03:01]} 8. Be2 {[%clk 0:02:53]}  b5 {[%clk 0:03:00]} 9. Qb3 {[%clk 0:02:49]}  c5 {[%clk 0:02:59]} 10. dxc5 {[%clk 0:02:45]}  Be6 {[%clk 0:02:23]} 11. Qc2 {[%clk 0:02:22]}  Nbd7 {[%clk 0:02:19]} 12. Be3 {[%clk 0:02:16]}  Ng4 {[%clk 0:02:17]} 13. Bd4 {[%clk 0:01:32]}  b4 {[%clk 0:01:27]} 14. Nd5 {[%clk 0:01:16]}  Bxd5 {[%clk 0:01:04]} 15. exd5 {[%clk 0:01:15]}  Qa5 {[%clk 0:01:05]} 16. O-O {[%clk 0:01:08]}  Rfc8 {[%clk 0:00:58]} 17. Rac1 {[%clk 0:01:00]}  Bh6 {[%clk 0:00:41]} 18. Nd2 {[%clk 0:00:49]}  Ngf6 {[%clk 0:00:35]} 19. Nb3 {[%clk 0:00:38]}  Qc7 {[%clk 0:00:18]} 20. Bf3 {[%clk 0:00:30]}  Bxc1 {[%clk 0:00:16]} 21. Rxc1 {[%clk 0:00:31]}  Rab8 {[%clk 0:00:16]} 22. Qe2 {[%clk 0:00:23]}  Qd8 {[%clk 0:00:11]} 23. c6 {[%clk 0:00:19]}  Nb6 {[%clk 0:00:08]} 24. Qxa6 {[%clk 0:00:12]}  Nbxd5 {[%clk 0:00:08]} 25. Na5 {[%clk 0:00:11]}  Nc7 {[%clk 0:00:07]} 26. Qc4 {[%clk 0:00:10]}  Ne6 {[%clk 0:00:08]} 27. Ba7 {[%clk 0:00:08]}  Qxa5 {[%clk 0:00:07]} 28. Bxb8 {[%clk 0:00:08]}  Rxb8 {[%clk 0:00:08]} 29. a3 {[%clk 0:00:07]}  bxa3 {[%clk 0:00:08]} 30. bxa3 {[%clk 0:00:08]}  Qxa3 {[%clk 0:00:08]} 31. c7 {[%clk 0:00:08]}  Rc8 {[%clk 0:00:09]} 32. Qe2 {[%clk 0:00:00]}  Rxc7 {[%clk 0:00:08]} 0-1


[Site "https://www.chess.com"]